fUST/lending_fUST_20260608
["ID","MTS","AMOUNT","RATE_DAILY","PERIOD"]
[424427681,1780878640000,-500.0,0.00017808,2]
[424427679,1780878640000,-500.0,0.00017808,2]
[424427675,1780878640000,-697.93,0.00017808,2]
[424427677,1780878640000,-560.79,0.00017808,2]
[424427685,1780878640000,-5708.49,0.00017808,2]
[424427687,1780878640000,-500.0,0.00017808,2]
[424427689,1780878640000,-500.0,0.00017808,2]
[424427701,1780878640000,-500.0,0.00017808,2]
[424427699,1780878640000,-1313.63,0.00017808,2]
[424427697,1780878640000,-4541.06,0.00017808,2]
[424427691,1780878640000,-500.0,0.00017808,2]
[424427695,1780878640000,-2647.81,0.00017808,2]
[424427693,1780878640000,-500.0,0.00017808,2]
[424427585,1780878640000,-500.0,0.00017534,2]
[424427651,1780878640000,-160.0,0.000177,2]
[424427649,1780878640000,-160.0,0.00017659,2]
[424427683,1780878640000,-3152.96,0.00017808,2]
[424427652,1780878640000,-169.05532389,0.000177,2]
[424427588,1780878640000,-2647.81,0.00017534,2]
[424427647,1780878640000,-833.22,0.00017534,2]
[424427589,1780878640000,-4541.06,0.00017534,2]
[424427593,1780878640000,-500.0,0.00017534,2]
[424427597,1780878640000,-500.0,0.00017534,2]
[424427591,1780878640000,-1313.63,0.00017534,2]
[424427595,1780878640000,-2454.27,0.00017534,2]
[424427599,1780878640000,-819.42,0.00017534,2]
[424427603,1780878640000,-401.57411493,0.00017534,2]
[424427604,1780878640000,-1200.66,0.00017534,2]
[424427607,1780878640000,-2387.2,0.00017534,2]
[424427610,1780878640000,-3809.75,0.00017534,2]
[424427608,1780878640000,-4590.8,0.00017534,2]
[424427614,1780878640000,-844.36,0.00017534,2]
[424427601,1780878640000,-3391.02,0.00017534,2]
[424427616,1780878640000,-3361.68,0.00017534,2]
[424427645,1780878640000,-1719.33,0.00017534,2]
[424427635,1780878640000,-1284.59,0.00017534,2]
[424427629,1780878640000,-2591.18,0.00017534,2]
[424427631,1780878640000,-550.52,0.00017534,2]
[424427633,1780878640000,-5084.71,0.00017534,2]
[424427621,1780878640000,-6671.91,0.00017534,2]
[424427637,1780878640000,-500.0,0.00017534,2]
[424427627,1780878640000,-2476.34,0.00017534,2]
[424427623,1780878640000,-500.0,0.00017534,2]
[424427619,1780878640000,-8421.31,0.00017534,2]
[424427613,1780878640000,-754.79,0.00017534,2]
[424427625,1780878640000,-8788.22,0.00017534,2]
[424427792,1780878641000,-500.0,0.00018082,2]
[424427790,1780878641000,-500.0,0.00018082,2]
[424427788,1780878641000,-5708.49,0.00018082,2]
[424427774,1780878641000,-500.0,0.00018082,2]
[424427776,1780878641000,-631.67,0.00018082,2]
[424427770,1780878641000,-1642.28,0.00018082,2]
[424427786,1780878641000,-3152.96,0.00018082,2]
[424427772,1780878641000,-500.0,0.00018082,2]
[424427835,1780878641000,-2476.34,0.00018082,2]
[424427782,1780878641000,-500.0,0.00018082,2]
[424427780,1780878641000,-560.79,0.00018082,2]
[424427768,1780878641000,-151.0,0.0001801,2]
[424427784,1780878641000,-500.0,0.00018082,2]
[424427794,1780878641000,-500.0,0.00018082,2]
[424427831,1780878641000,-500.0,0.00018082,2]
[424427807,1780878641000,-500.0,0.00018082,2]
[424427811,1780878641000,-3391.02,0.00018082,2]
[424427810,1780878641000,-819.42,0.00018082,2]
[424427800,1780878641000,-4541.06,0.00018082,2]
[424427803,1780878641000,-500.0,0.00018082,2]
[424427796,1780878641000,-500.0,0.00018082,2]
[424427801,1780878641000,-1313.63,0.00018082,2]
[424427814,1780878641000,-1200.66,0.00018082,2]
[424427798,1780878641000,-2647.81,0.00018082,2]
[424427816,1780878641000,-2387.2,0.00018082,2]
[424427818,1780878641000,-4590.8,0.00018082,2]
[424427819,1780878641000,-3809.75,0.00018082,2]
[424427833,1780878641000,-8788.22,0.00018082,2]
[424427766,1780878641000,-700.45,0.00018009,2]
[424427805,1780878641000,-2454.27,0.00018082,2]
[424427778,1780878641000,-697.93,0.00018082,2]
[424427707,1780878641000,-819.42,0.00017808,2]
[424427743,1780878641000,-500.0,0.00017808,2]
[424427703,1780878641000,-2454.27,0.00017808,2]
[424427705,1780878641000,-500.0,0.00017808,2]
[424427711,1780878641000,-1200.66,0.00017808,2]
[424427709,1780878641000,-3391.02,0.00017808,2]
[424427713,1780878641000,-2387.2,0.00017808,2]
[424427715,1780878641000,-4590.8,0.00017808,2]
[424427727,1780878641000,-6671.91,0.00017808,2]
[424427725,1780878641000,-8421.31,0.00017808,2]
[424427729,1780878641000,-500.0,0.00017808,2]
[424427721,1780878641000,-844.36,0.00017808,2]
[424427733,1780878641000,-2476.34,0.00017808,2]
[424427717,1780878641000,-3809.75,0.00017808,2]
[424427719,1780878641000,-754.79,0.00017808,2]
[424427731,1780878641000,-8788.22,0.00017808,2]
[424427723,1780878641000,-3361.68,0.00017808,2]
[424427737,1780878641000,-550.52,0.00017808,2]
[424427735,1780878641000,-2591.18,0.00017808,2]
[424427739,1780878641000,-5084.71,0.00017808,2]
[424427747,1780878641000,-4348.61,0.00017808,2]
[424427760,1780878641000,-500.0,0.00018009,2]
[424427751,1780878641000,-1719.33,0.00017808,2]
[424427749,1780878641000,-500.0,0.00017808,2]
[424427762,1780878641000,-706.98,0.00018009,2]
[424427745,1780878641000,-528.98,0.00017808,2]
[424427755,1780878641000,-169.05532389,0.00018,2]
[424427756,1780878641000,-177.15722781,0.00018,2]
[424427741,1780878641000,-1284.59,0.00017808,2]
[424427764,1780878641000,-500.0,0.00018009,2]
[424427753,1780878641000,-833.22,0.00017808,2]
[424427758,1780878641000,-500.0,0.00018009,2]
[424427822,1780878641000,-754.79,0.00018082,2]
[424427874,1780878641000,-706.98,0.00018283,2]
[424427827,1780878641000,-8421.31,0.00018082,2]
[424427905,1780878641000,-500.0,0.00018356,2]
[424427913,1780878641000,-4541.06,0.00018356,2]
[424427911,1780878641000,-2647.81,0.00018356,2]
[424427903,1780878641000,-500.0,0.00018356,2]
[424427916,1780878641000,-1313.63,0.00018356,2]
[424427907,1780878641000,-500.0,0.00018356,2]
[424427920,1780878641000,-2454.27,0.00018356,2]
[424427918,1780878641000,-500.0,0.00018356,2]
[424427922,1780878641000,-376.85207406,0.00018356,2]
[424427924,1780878641000,-819.42,0.00018356,2]
[424427926,1780878641000,-3391.02,0.00018356,2]
[424427936,1780878641000,-754.79,0.00018356,2]
[424427938,1780878641000,-844.36,0.00018356,2]
[424427940,1780878641000,-3361.68,0.00018356,2]
[424427942,1780878641000,-8421.31,0.00018356,2]
[424427930,1780878641000,-2387.2,0.00018356,2]
[424427928,1780878641000,-1200.66,0.00018356,2]
[424427934,1780878641000,-3809.75,0.00018356,2]
[424427944,1780878641000,-6671.91,0.00018356,2]
[424427946,1780878641000,-500.0,0.00018356,2]
[424427932,1780878641000,-4590.8,0.00018356,2]
[424427948,1780878641000,-8788.22,0.00018356,2]
[424427950,1780878641000,-2476.34,0.00018356,2]
[424427952,1780878641000,-2591.18,0.00018356,2]
[424427953,1780878641000,-550.52,0.00018356,2]
[424427955,1780878641000,-5084.71,0.00018356,2]
[424427959,1780878641000,-500.0,0.00018356,2]
[424427957,1780878641000,-1284.59,0.00018356,2]
[424427961,1780878641000,-528.98,0.00018356,2]
[424427909,1780878641000,-500.0,0.00018356,2]
[424427901,1780878641000,-5708.49,0.00018356,2]
[424427823,1780878641000,-844.36,0.00018082,2]
[424427890,1780878641000,-697.93,0.00018356,2]
[424427825,1780878641000,-3361.68,0.00018082,2]
[424427829,1780878641000,-6671.91,0.00018082,2]
[424427841,1780878641000,-5084.71,0.00018082,2]
[424427839,1780878641000,-550.52,0.00018082,2]
[424427837,1780878641000,-2591.18,0.00018082,2]
[424427843,1780878641000,-1284.59,0.00018082,2]
[424427848,1780878641000,-528.98,0.00018082,2]
[424427852,1780878641000,-500.0,0.00018082,2]
[424427898,1780878641000,-3152.96,0.00018356,2]
[424427856,1780878641000,-833.22,0.00018082,2]
[424427850,1780878641000,-4348.61,0.00018082,2]
[424427854,1780878641000,-1719.33,0.00018082,2]
[424427864,1780878641000,-370.20841975,0.00018201,2]
[424427858,1780878641000,-169.05532389,0.000182,2]
[424427862,1780878641000,-205.67134431,0.00018201,2]
[424427846,1780878641000,-500.0,0.00018082,2]
[424427866,1780878641000,-281.0944274,0.00018201,2]
[424427859,1780878641000,-177.15722781,0.000182,2]
[424427892,1780878641000,-560.79,0.00018356,2]
[424427888,1780878641000,-631.67,0.00018356,2]
[424427884,1780878641000,-522.91646158,0.00018356,2]
[424427896,1780878641000,-500.0,0.00018356,2]
[424427894,1780878641000,-500.0,0.00018356,2]
[424427886,1780878641000,-500.0,0.00018356,2]
[424427882,1780878641000,-1642.28,0.00018356,2]
[424427880,1780878641000,-428.187898,0.0001834,2]
[424427876,1780878641000,-500.0,0.00018283,2]
[424427870,1780878641000,-500.0,0.00018283,2]
[424427872,1780878641000,-500.0,0.00018283,2]
[424427868,1780878641000,-333.91957508,0.00018201,2]
[424427878,1780878641000,-700.45,0.00018283,2]
[424428037,1780878642000,-500.0,0.00018545,2]
[424428052,1780878642000,-760.93,0.00018545,2]
[424428050,1780878642000,-500.0,0.00018545,2]
[424428046,1780878642000,-500.0,0.00018545,2]
[424428048,1780878642000,-500.0,0.00018545,2]
[424428039,1780878642000,-38503.17,0.00018545,2]
[424428014,1780878642000,-729.09,0.00018545,2]
[424428041,1780878642000,-770.83,0.00018545,2]
[424428045,1780878642000,-612.62,0.00018545,2]
[424428043,1780878642000,-500.0,0.00018545,2]
[424428032,1780878642000,-865.26,0.00018545,2]
[424428028,1780878642000,-1008.81,0.00018545,2]
[424428035,1780878642000,-500.0,0.00018545,2]
[424428054,1780878642000,-500.0,0.00018545,2]
[424428085,1780878642000,-197.43633341,0.00018545,2]
[424428056,1780878642000,-9037.61,0.00018545,2]
[424428076,1780878642000,-176.52924033,0.00018545,2]
[424428072,1780878642000,-9739.98,0.00018545,2]
[424428074,1780878642000,-1736.25,0.00018545,2]
[424428078,1780878642000,-175.76050604,0.00018545,2]
[424428062,1780878642000,-508.23478326,0.00018545,2]
[424428064,1780878642000,-500.0,0.00018545,2]
[424428060,1780878642000,-3733.84,0.00018545,2]
[424428070,1780878642000,-1980.149,0.00018545,2]
[424428068,1780878642000,-750.25,0.00018545,2]
[424428083,1780878642000,-164.38863115,0.00018545,2]
[424428066,1780878642000,-2177.15,0.00018545,2]
[424428080,1780878642000,-151.16683629,0.00018545,2]
[424428030,1780878642000,-573.23130164,0.00018545,2]
[424428058,1780878642000,-2019.85,0.00018545,2]
[424428026,1780878642000,-544.84,0.00018545,2]
[424427994,1780878642000,-540.22,0.00018545,2]
[424428009,1780878642000,-704.81,0.00018545,2]
[424428101,1780878642000,-700.45,0.00018557,2]
[424427965,1780878642000,-500.0,0.00018356,2]
[424427969,1780878642000,-833.22,0.00018356,2]
[424427971,1780878642000,-1000.0,0.00018381,2]
[424427967,1780878642000,-1719.33,0.00018356,2]
[424427973,1780878642000,-1000.0,0.00018381,2]
[424427963,1780878642000,-4348.61,0.00018356,2]
[424427975,1780878642000,-1000.0,0.00018381,2]
[424427977,1780878642000,-1000.0,0.00018381,2]
[424427979,1780878642000,-1000.0,0.00018381,2]
[424427990,1780878642000,-159.94578907,0.00018543,2]
[424427981,1780878642000,-1000.0,0.00018381,2]
[424427982,1780878642000,-1000.0,0.00018381,2]
[424427986,1780878642000,-169.05532389,0.000184,2]
[424427984,1780878642000,-816.82889062,0.00018381,2]
[424427992,1780878642000,-506.1,0.00018545,2]
[424427999,1780878642000,-615.9,0.00018545,2]
[424427988,1780878642000,-151.0,0.000185,2]
[424427996,1780878642000,-944.63,0.00018545,2]
[424428000,1780878642000,-1310.01,0.00018545,2]
[424428003,1780878642000,-500.0,0.00018545,2]
[424428005,1780878642000,-500.0,0.00018545,2]
[424428016,1780878642000,-500.0,0.00018545,2]
[424428007,1780878642000,-2626.0,0.00018545,2]
[424428020,1780878642000,-866.38,0.00018545,2]
[424428018,1780878642000,-1332.28,0.00018545,2]
[424428024,1780878642000,-500.0,0.00018545,2]
[424428022,1780878642000,-500.0,0.00018545,2]
[424428010,1780878642000,-500.0,0.00018545,2]
[424428012,1780878642000,-500.0,0.00018545,2]
[424428087,1780878642000,-162.9088668,0.00018545,2]
[424428093,1780878642000,-500.0,0.00018557,2]
[424428221,1780878642000,-500.0,0.00018747,2]
[424428163,1780878642000,-8788.22,0.0001863,2]
[424428173,1780878642000,-1284.59,0.0001863,2]
[424428178,1780878642000,-528.98,0.0001863,2]
[424428171,1780878642000,-5084.71,0.0001863,2]
[424428176,1780878642000,-500.0,0.0001863,2]
[424428169,1780878642000,-550.52,0.0001863,2]
[424428168,1780878642000,-2591.18,0.0001863,2]
[424428180,1780878642000,-4348.61,0.0001863,2]
[424428165,1780878642000,-2476.34,0.0001863,2]
[424428182,1780878642000,-500.0,0.0001863,2]
[424428184,1780878642000,-1719.33,0.0001863,2]
[424428188,1780878642000,-192.13,0.0001863,2]
[424428190,1780878642000,-825.0,0.00018648,2]
[424428192,1780878642000,-151.0,0.000187,2]
[424428200,1780878642000,-500.0,0.00018747,2]
[424428204,1780878642000,-500.0,0.00018747,2]
[424428198,1780878642000,-500.0,0.00018747,2]
[424428202,1780878642000,-500.0,0.00018747,2]
[424428196,1780878642000,-500.0,0.00018747,2]
[424428209,1780878642000,-500.0,0.00018747,2]
[424428207,1780878642000,-500.0,0.00018747,2]
[424428205,1780878642000,-500.0,0.00018747,2]
[424428213,1780878642000,-500.0,0.00018747,2]
[424428194,1780878642000,-500.0,0.00018747,2]
[424428215,1780878642000,-1289.09,0.00018747,2]
[424428211,1780878642000,-500.0,0.00018747,2]
[424428217,1780878642000,-500.0,0.00018747,2]
[424428097,1780878642000,-706.98,0.00018557,2]
[424428219,1780878642000,-500.0,0.00018747,2]
[424428161,1780878642000,-500.0,0.0001863,2]
[424428159,1780878642000,-6671.91,0.0001863,2]
[424428186,1780878642000,-833.22,0.0001863,2]
[424428155,1780878642000,-3361.68,0.0001863,2]
[424428089,1780878642000,-222.65735485,0.00018552,2]
[424428157,1780878642000,-8421.31,0.0001863,2]
[424428095,1780878642000,-158.23160353,0.00018557,2]
[424428103,1780878642000,-1642.28,0.0001863,2]
[424428104,1780878642000,-500.0,0.0001863,2]
[424428099,1780878642000,-500.0,0.00018557,2]
[424428108,1780878642000,-697.93,0.0001863,2]
[424428106,1780878642000,-631.67,0.0001863,2]
[424428110,1780878642000,-560.79,0.0001863,2]
[424428112,1780878642000,-500.0,0.0001863,2]
[424428114,1780878642000,-554.57916018,0.0001863,2]
[424428122,1780878642000,-500.0,0.0001863,2]
[424428130,1780878642000,-4541.06,0.0001863,2]
[424428124,1780878642000,-500.0,0.0001863,2]
[424428126,1780878642000,-500.0,0.0001863,2]
[424428091,1780878642000,-177.90765743,0.00018552,2]
[424428116,1780878642000,-3152.96,0.0001863,2]
[424428142,1780878642000,-3391.02,0.0001863,2]
[424428128,1780878642000,-2647.81,0.0001863,2]
[424428153,1780878642000,-844.36,0.0001863,2]
[424428151,1780878642000,-754.79,0.0001863,2]
[424428147,1780878642000,-2387.2,0.0001863,2]
[424428148,1780878642000,-4590.8,0.0001863,2]
[424428141,1780878642000,-819.42,0.0001863,2]
[424428144,1780878642000,-1200.66,0.0001863,2]
[424428139,1780878642000,-2454.27,0.0001863,2]
[424428137,1780878642000,-501.53320489,0.0001863,2]
[424428132,1780878642000,-1313.63,0.0001863,2]
[424428118,1780878642000,-5708.49,0.0001863,2]
[424428120,1780878642000,-500.0,0.0001863,2]
[424428149,1780878642000,-3809.75,0.0001863,2]
[424428286,1780878643000,-500.0,0.00018747,2]
[424428314,1780878643000,-540.22,0.00018819,2]
[424428310,1780878643000,-500.0,0.00018747,2]
[424428308,1780878643000,-500.0,0.00018747,2]
[424428298,1780878643000,-602.29,0.00018747,2]
[424428292,1780878643000,-500.0,0.00018747,2]
[424428294,1780878643000,-1177.01,0.00018747,2]
[424428288,1780878643000,-500.0,0.00018747,2]
[424428279,1780878643000,-1284.4,0.00018747,2]
[424428290,1780878643000,-500.0,0.00018747,2]
[424428302,1780878643000,-500.0,0.00018747,2]
[424428296,1780878643000,-500.0,0.00018747,2]
[424428312,1780878643000,-506.1,0.00018819,2]
[424428320,1780878643000,-1310.01,0.00018819,2]
[424428306,1780878643000,-504.5,0.00018747,2]
[424428318,1780878643000,-615.9,0.00018819,2]
[424428322,1780878643000,-500.0,0.00018819,2]
[424428316,1780878643000,-944.63,0.00018819,2]
[424428304,1780878643000,-500.0,0.00018747,2]
[424428324,1780878643000,-500.0,0.00018819,2]
[424428334,1780878643000,-729.09,0.00018819,2]
[424428326,1780878643000,-2626.0,0.00018819,2]
[424428336,1780878643000,-500.0,0.00018819,2]
[424428330,1780878643000,-500.0,0.00018819,2]
[424428328,1780878643000,-704.81,0.00018819,2]
[424428332,1780878643000,-379.74649,0.00018819,2]
[424428338,1780878643000,-1332.28,0.00018819,2]
[424428280,1780878643000,-500.0,0.00018747,2]
[424428300,1780878643000,-500.0,0.00018747,2]
[424428277,1780878643000,-500.0,0.00018747,2]
[424428342,1780878643000,-500.0,0.00018819,2]
[424428276,1780878643000,-506.65,0.00018747,2]
[424428229,1780878643000,-610.85,0.00018747,2]
[424428231,1780878643000,-500.0,0.00018747,2]
[424428233,1780878643000,-500.0,0.00018747,2]
[424428235,1780878643000,-820.36,0.00018747,2]
[424428227,1780878643000,-500.0,0.00018747,2]
[424428225,1780878643000,-500.0,0.00018747,2]
[424428223,1780878643000,-500.0,0.00018747,2]
[424428237,1780878643000,-500.0,0.00018747,2]
[424428239,1780878643000,-500.0,0.00018747,2]
[424428243,1780878643000,-502.81,0.00018747,2]
[424428241,1780878643000,-563.43,0.00018747,2]
[424428245,1780878643000,-758.76,0.00018747,2]
[424428247,1780878643000,-500.0,0.00018747,2]
[424428284,1780878643000,-545.31614392,0.00018747,2]
[424428258,1780878643000,-1215.1,0.00018747,2]
[424428254,1780878643000,-479.30489911,0.00018747,2]
[424428251,1780878643000,-500.0,0.00018747,2]
[424428256,1780878643000,-815.55,0.00018747,2]
[424428253,1780878643000,-1202.63,0.00018747,2]
[424428260,1780878643000,-500.0,0.00018747,2]
[424428262,1780878643000,-500.0,0.00018747,2]
[424428266,1780878643000,-500.0,0.00018747,2]
[424428264,1780878643000,-774.0,0.00018747,2]
[424428270,1780878643000,-500.0,0.00018747,2]
[424428268,1780878643000,-2720.79,0.00018747,2]
[424428274,1780878643000,-500.0,0.00018747,2]
[424428272,1780878643000,-500.0,0.00018747,2]
[424428282,1780878643000,-1061.6,0.00018747,2]
[424428249,1780878643000,-500.0,0.00018747,2]
[424428340,1780878643000,-866.38,0.00018819,2]
[424428444,1780878643000,-3391.02,0.00018904,2]
[424428348,1780878643000,-1008.81,0.00018819,2]
[424428414,1780878643000,-500.0,0.00018904,2]
[424428412,1780878643000,-560.79,0.00018904,2]
[424428418,1780878643000,-5708.49,0.00018904,2]
[424428420,1780878643000,-500.0,0.00018904,2]
[424428424,1780878643000,-500.0,0.00018904,2]
[424428416,1780878643000,-3152.96,0.00018904,2]
[424428433,1780878643000,-500.0,0.00018904,2]
[424428435,1780878643000,-2647.81,0.00018904,2]
[424428437,1780878643000,-4541.06,0.00018904,2]
[424428439,1780878643000,-1313.63,0.00018904,2]
[424428441,1780878643000,-2454.27,0.00018904,2]
[424428443,1780878643000,-819.42,0.00018904,2]
[424428448,1780878643000,-2387.2,0.00018904,2]
[424428410,1780878643000,-697.93,0.00018904,2]
[424428446,1780878643000,-1200.66,0.00018904,2]
[424428466,1780878643000,-500.0,0.00018904,2]
[424428452,1780878643000,-3809.75,0.00018904,2]
[424428460,1780878643000,-8421.31,0.00018904,2]
[424428470,1780878643000,-2591.18,0.00018904,2]
[424428458,1780878643000,-3361.68,0.00018904,2]
[424428456,1780878643000,-844.36,0.00018904,2]
[424428472,1780878643000,-550.52,0.00018904,2]
[424428464,1780878643000,-8788.22,0.00018904,2]
[424428473,1780878643000,-5084.71,0.00018904,2]
[424428468,1780878643000,-2476.34,0.00018904,2]
[424428454,1780878643000,-754.79,0.00018904,2]
[424428462,1780878643000,-6671.91,0.00018904,2]
[424428344,1780878643000,-500.0,0.00018819,2]
[424428450,1780878643000,-4590.8,0.00018904,2]
[424428406,1780878643000,-500.0,0.00018904,2]
[424428422,1780878643000,-500.0,0.00018904,2]
[424428408,1780878643000,-631.67,0.00018904,2]
[424428346,1780878643000,-544.84,0.00018819,2]
[424428350,1780878643000,-865.26,0.00018819,2]
[424428363,1780878643000,-500.0,0.00018819,2]
[424428361,1780878643000,-612.62,0.00018819,2]
[424428357,1780878643000,-770.83,0.00018819,2]
[424428352,1780878643000,-500.0,0.00018819,2]
[424428365,1780878643000,-500.0,0.00018819,2]
[424428404,1780878643000,-1642.28,0.00018904,2]
[424428355,1780878643000,-38503.17,0.00018819,2]
[424428353,1780878643000,-467.62838398,0.00018819,2]
[424428359,1780878643000,-500.0,0.00018819,2]
[424428371,1780878643000,-500.0,0.00018819,2]
[424428369,1780878643000,-760.93,0.00018819,2]
[424428375,1780878643000,-2019.85,0.00018819,2]
[424428377,1780878643000,-3733.84,0.00018819,2]
[424428367,1780878643000,-500.0,0.00018819,2]
[424428379,1780878643000,-500.0,0.00018819,2]
[424428373,1780878643000,-9037.61,0.00018819,2]
[424428402,1780878643000,-315.27304265,0.00018901,2]
[424428399,1780878643000,-200.0,0.00018898,2]
[424428383,1780878643000,-750.25,0.00018819,2]
[424428387,1780878643000,-9739.98,0.00018819,2]
[424428400,1780878643000,-3808.73163559,0.000189,2]
[424428396,1780878643000,-700.45,0.00018831,2]
[424428381,1780878643000,-2177.15,0.00018819,2]
[424428385,1780878643000,-1980.149,0.00018819,2]
[424428393,1780878643000,-706.98,0.00018831,2]
[424428391,1780878643000,-500.0,0.00018831,2]
[424428389,1780878643000,-1736.25,0.00018819,2]
[424428395,1780878643000,-500.0,0.00018831,2]
[424428483,1780878644000,-500.0,0.00018904,2]
[424428478,1780878644000,-500.0,0.00018904,2]
[424428480,1780878644000,-528.98,0.00018904,2]
[424428481,1780878644000,-4348.61,0.00018904,2]
[424428476,1780878644000,-1284.59,0.00018904,2]
[424428487,1780878644000,-833.22,0.00018904,2]
[424428493,1780878644000,-312.11381684,0.00018965,2]
[424428499,1780878644000,-200.0,0.00018999,2]
[424428485,1780878644000,-1719.33,0.00018904,2]
[424428491,1780878644000,-315.27304266,0.00018916,2]
[424428495,1780878644000,-201.77434111,0.00018978,2]
[424428497,1780878644000,-171.427,0.00018999,2]
[424428501,1780878644000,-324341.26471961,0.00019,2]
[424428513,1780878644000,-792.96020671,0.00016274,2]
[424428489,1780878644000,-192.13,0.00018904,2]
[424428784,1780878646000,-4207.03979329,0.00016274,2]
[424428788,1780878646000,-500.0,0.00016712,2]
[424428786,1780878646000,-500.0,0.00016438,2]
[424428790,1780878646000,-500.0,0.00018545,2]
[424428792,1780878646000,-575.53,0.00018747,2]
[424428794,1780878646000,-1494.93020673,0.00019,2]
[424429334,1780878693000,240.21066555,0.0002499,120]
[424429333,1780878693000,-250.0,0.00013246,2]
[424429335,1780878705000,-5000.0,0.00016274,2]
[424429348,1780878737000,321.7,0.0002499,120]
[424429347,1780878737000,-500.0,0.00011384,2]
[424429349,1780878753000,-500.0,0.00011384,2]
[424429350,1780878765000,-500.0,0.00011383,2]
[424429363,1780878808000,-100.0,0.00011383,2]
[424429364,1780878861000,-160.05595473,0.00011383,2]
[424429376,1780878915000,-500.0,0.00011382,2]
[424429378,1780878968000,-284.32194315,0.00011382,2]
[424429381,1780879021000,-199.0253602,0.00011381,2]
[424429382,1780879075000,-500.0,0.00011381,2]
[424429383,1780879128000,-5000.0,0.00011271,2]
[424429387,1780879181000,-500.0,0.0001138,2]
[424429389,1780879287000,10000.0,0.00023288,120]
[424429392,1780879558000,-3121.86829271,0.00010929,2]
[424429393,1780879596000,-473.20452025,0.0001082,2]
[424429394,1780879634000,-1667.41551178,0.00010929,2]
[424429396,1780879649000,-500.0,0.00011038,2]
[424429395,1780879649000,-210.71619551,0.00010929,2]
[424429398,1780879650000,-116.37054215,0.00011038,2]
[424429397,1780879650000,-580.3251277,0.00011038,2]
[424429399,1780879703000,-383.62945785,0.00011038,2]
[424429400,1780879756000,-500.0,0.00011037,2]
[424429412,1780879757000,-500.0,0.00011037,2]
[424429411,1780879757000,-500.0,0.00011037,2]
[424429409,1780879757000,-500.0,0.00011037,2]
[424429408,1780879757000,-500.0,0.00011037,2]
[424429407,1780879757000,-500.0,0.00011037,2]
[424429404,1780879757000,-500.0,0.00011037,2]
[424429405,1780879757000,-500.0,0.00011037,2]
[424429403,1780879757000,-500.0,0.00011037,2]
[424429401,1780879757000,-486.75948226,0.00011037,2]
[424429402,1780879757000,-500.0,0.00011037,2]
[424429406,1780879757000,-500.0,0.00011037,2]
[424429413,1780879757000,-500.0,0.00011037,2]
[424429410,1780879757000,-500.0,0.00011037,2]
[424429415,1780879757000,-500.0,0.00011037,2]
[424429414,1780879757000,-500.0,0.00011037,2]
[424429425,1780879757000,-500.0,0.00011037,2]
[424429424,1780879757000,-500.0,0.00011037,2]
[424429423,1780879757000,-500.0,0.00011037,2]
[424429422,1780879757000,-500.0,0.00011037,2]
[424429426,1780879757000,-500.0,0.00011037,2]
[424429420,1780879757000,-523.70004931,0.00011037,2]
[424429419,1780879757000,-500.0,0.00011037,2]